bitfinex/quotes_SOLUSD_20250929
["timestamp","ask_amount","ask_price","bid_price","bid_amount"]
[1759156973986,10.87713215,211.7,211.63,37.6]
[1759156974966,10.87713215,211.7,211.62,0.67]
[1759156975172,10.87713215,211.7,211.63,37.58]
[1759156975884,5.44373087,211.7,211.63,42.30509938]
[1759156976792,5.44373087,211.7,211.63,37.58]
[1759156976977,5.44373087,211.7,211.55,49.63479615]
[1759156976978,0.72,211.69,211.64,37.56]
[1759156977177,0.72,211.68,211.64,37.56]
[1759156977967,4.72433504,211.67,211.64,37.56]
[1759156978670,0.72,211.67,211.65,37.54]
[1759156978871,10.15729103,211.69,211.65,37.54]
[1759156979078,0.72,211.72,211.65,38.21]
[1759156979789,5.43340128,211.73,211.62,39.59559401]
[1759156979999,5.43340128,211.69,211.62,0.67]
[1759156980170,6.15340128,211.69,211.63,37.54]
[1759156980693,4.72366556,211.7,211.64,37.56]
[1759156980994,6.15340128,211.69,211.65,37.54]
[1759156981199,0.72,211.68,211.59,0.67]
[1759156981399,5.43340128,211.69,211.6,37.54]
[1759156981600,4.72336077,211.72,211.61,14.26559401]
[1759156981895,4.82286828,211.74,211.65,13.59559401]
[1759156982209,0.72,211.73,211.64,26.67]
[1759156982374,6.15340128,211.72,211.64,0.67]
[1759156982693,6.15340128,211.72,211.65,37.54]
[1759156983273,6.15340128,211.72,211.64,0.67]
[1759156983274,6.15340128,211.72,211.66,37.54]
[1759156984178,4.72344244,211.71,211.66,37.54]
[1759156984381,5.43340128,211.72,211.67,0.67]
[1759156984575,10.15667378,211.72,211.67,79.97]
[1759156984899,4.7232725,211.72,211.68,0.67]
[1759156985103,4.8229408,211.74,211.69,0.67]
[1759156985404,0.1,211.74,211.7,0.67]
[1759156985584,0.1,211.74,211.71,37.52]
[1759156985984,0.1,211.74,211.72,37.54]
[1759156986292,0.1,211.74,211.73,38.21]
[1759156986492,0.1,211.74,211.73,37.54]
[1759156987293,4.82277321,211.74,211.73,37.54]
[1759156987704,0.82,211.74,211.72,37.54]
[1759156988002,0.1,211.74,211.72,37.54]
[1759156989300,0.1,211.74,211.73,0.67]
[1759156990481,0.1,211.74,211.73,5.39299626]
[1759156991285,0.1,211.74,211.73,18.98859027]
[1759156993888,0.1,211.81,211.77,39.59559401]
[1759156994089,0.1,211.81,211.79,13.59559401]
[1759156994402,0.1,211.81,211.8,4.72143531]
[1759156994601,0.1,211.81,211.8,5.43143531]
[1759156994796,0.1,211.81,211.8,4.72143531]
[1759156994998,0.1,211.81,211.8,19.02702932]
[1759156995208,0.71,211.94,211.82,13.59559401]
[1759156995509,4.71835102,211.94,211.82,51.17559401]
[1759156995707,4.71835102,211.94,211.82,51.88559401]
[1759156995892,0.1,211.96,211.82,51.88559401]
[1759156996093,4.71831746,211.94,211.82,14.30559401]
[1759156996404,4.71857114,211.93,211.82,56.60658352]
[1759156996810,4.71880683,211.92,211.82,56.60658352]
[1759156997011,1e-08,211.83,211.82,19.02658352]
[1759156997189,1e-08,211.83,211.82,53.11500439]
[1759156997392,1e-08,211.83,211.82,27.11500439]
[1759156997690,1e-08,211.83,211.82,64.93500439]
[1759156998208,1e-08,211.83,211.82,65.01500439]
[1759156999607,1e-08,211.83,211.82,64.97500439]
[1759156999987,1e-08,211.83,211.82,27.11500439]
[1759157000195,1e-08,211.83,211.82,56.88658352]
[1759157001095,0.81,211.96,211.94,26.0]
[1759157001286,0.81,211.96,211.91,13.59559401]
[1759157001287,0.1,211.96,211.95,37.92]
[1759157001912,0.76,211.96,211.95,37.92]
[1759157003310,5.47787129,211.96,211.88,13.59559401]
[1759157003513,5.47787129,211.96,211.89,37.92]
[1759157003514,0.66,211.95,211.89,37.92]
[1759157003814,0.66,211.94,211.88,13.59559401]
[1759157004121,0.66,211.94,211.9,37.92]
[1759157004318,0.66,211.93,211.9,37.92]
[1759157004518,0.66,211.95,211.9,37.92]
[1759157004697,0.66,211.94,211.9,37.92]
[1759157005597,0.66,211.94,211.9,42.63919091]
[1759157006306,0.1,211.96,211.91,13.59559401]
[1759157006503,0.1,211.96,211.9,42.63909227]
[1759157006694,0.1,211.96,211.9,37.92]
[1759157006903,5.47790287,211.96,211.9,37.92]
[1759157007096,5.47790287,211.96,211.89,26.0]
[1759157007303,0.66,211.95,211.91,37.96]
[1759157007511,0.66,211.94,211.92,37.96]
[1759157009334,0.66,211.93,211.92,37.96]
[1759157009638,0.66,211.93,211.89,13.59559401]
[1759157009811,4.81791463,211.96,211.88,37.94]
[1759157009812,34.08842087,211.9,211.88,37.94]
[1759157009999,0.66,211.89,211.77,4.72209153]
[1759157010202,0.66,211.88,211.78,29.1]
[1759157010410,8.08842087,211.87,211.78,43.88053148]
[1759157010636,0.66,211.86,211.79,13.59559401]
[1759157010826,5.38022623,211.86,211.79,18.31720485]
[1759157011322,8.08842087,211.88,211.8,0.71]
[1759157011503,8.08842087,211.88,211.81,37.96]
[1759157011708,13.46809622,211.88,211.81,37.96]
[1759157012420,0.66,211.88,211.82,13.59559401]
[1759157012724,8.08842087,211.94,211.85,4.72032098]
[1759157012922,0.1,211.96,211.86,52.26559401]
[1759157013307,0.1,211.96,211.88,13.59559401]
[1759157013702,0.1,211.96,211.89,0.71]
[1759157013923,0.1,211.96,211.9,37.94]
[1759157014128,0.1,211.96,211.91,0.71]
[1759157014312,0.1,211.96,211.93,13.59559401]
[1759157014518,0.1,211.96,211.94,37.94]
[1759157014713,0.1,211.96,211.94,38.65]
[1759157014919,0.1,211.96,211.95,5.42809389]
[1759157015318,0.1,211.96,211.95,0.71]
[1759157015834,0.1,211.96,211.92,4.71867923]
[1759157016039,0.1,211.96,211.93,37.92]
[1759157016238,0.1,211.96,211.94,14.30559401]
[1759157016608,0.1,211.96,211.95,14.30559401]
[1759157016941,0.1,211.96,211.95,19.0236879]
[1759157017310,0.1,211.96,211.95,14.30559401]
[1759157017509,0.1,211.96,211.95,19.0236879]
[1759157017918,0.1,211.96,211.95,45.0236879]
[1759157019412,0.1,211.96,211.95,40.30559401]
[1759157019619,0.1,211.96,211.95,45.0236879]
[1759157020716,0.1,211.96,211.95,40.30559401]
[1759157020916,1e-08,211.96,211.95,19.0236879]
[1759157021138,0.1,211.99,211.98,39.59559401]
[1759157021335,0.1,211.99,211.98,77.43559401]
[1759157021648,13.56568378,211.99,211.94,3.83336724]
[1759157021851,8.08842087,211.95,211.86,5.56]
[1759157022137,8.08842087,211.95,211.85,5.56]
[1759157022344,8.08842087,211.88,211.85,5.56]
[1759157022737,4.71920717,211.9,211.85,5.56]
[1759157022940,8.08842087,211.87,211.8,0.71]
[1759157023126,8.08842087,211.87,211.81,24.66]
[1759157023127,8.74842087,211.87,211.81,24.66]
[1759157023514,16.5172251,211.9,211.81,24.66]
[1759157023515,8.08842087,211.84,211.81,24.66]
[1759157023711,0.66,211.83,211.81,24.66]
[1759157024111,8.74842087,211.87,211.81,24.66]
[1759157024344,0.66,211.87,211.81,24.66]
[1759157024640,0.66,211.86,211.81,24.66]
[1759157024821,5.38032098,211.85,211.81,24.66]
[1759157025141,5.37942989,211.89,211.81,24.66]
[1759157025347,8.08842087,211.86,211.81,24.66]
[1759157026011,8.74842087,211.86,211.81,24.66]
[1759157026248,8.08842087,211.83,211.81,38.3]
[1759157026446,0.66,211.82,211.73,14.30559401]
[1759157026652,8.08842087,211.8,211.74,38.34]
[1759157026832,8.08842087,211.83,211.76,13.59559401]
[1759157027039,8.08842087,211.83,211.74,51.93559401]
[1759157027249,0.66,211.83,211.74,77.93559401]
[1759157027551,8.08842087,211.82,211.74,77.93559401]
[1759157028932,12.80945546,211.82,211.74,64.34]
[1759157029142,8.08842087,211.82,211.74,64.34]
[1759157029344,8.08842087,211.85,211.75,0.71]
[1759157030083,3.13521997,211.88,211.8,26.0]
[1759157030352,0.66,211.91,211.81,52.01559401]
[1759157030548,0.66,211.91,211.8,26.71]
[1759157030739,8.08842087,211.89,211.81,38.42]
[1759157030942,12.80787286,211.89,211.81,38.42]
[1759157031560,8.08842087,211.89,211.81,38.42]
[1759157032241,12.80789791,211.89,211.81,38.42]
[1759157032750,11.24391626,211.89,211.81,38.42]
[1759157032935,8.08842087,211.89,211.81,38.42]
[1759157033129,12.80788413,211.89,211.81,38.42]
[1759157033539,13.48788413,211.89,211.81,38.42]
[1759157033847,16.64337952,211.89,211.81,38.42]
[1759157034044,13.48788413,211.89,211.81,38.42]
[1759157034349,11.92391626,211.89,211.81,38.42]
[1759157034558,13.48798142,211.89,211.81,38.42]
[1759157034727,3.15549539,211.9,211.81,0.68]
[1759157035061,4.7212124,211.81,211.72,0.68]
[1759157035238,4.7212124,211.81,211.73,6.58]
[1759157035435,26.0,211.87,211.77,26.0]
[1759157035436,3.15549539,211.85,211.77,26.0]
[1759157035635,8.76842087,211.87,211.78,39.08]
[1759157035849,3.15549539,211.9,211.81,26.0]
[1759157036053,8.08842087,211.86,211.79,0.68]
[1759157036356,8.76842087,211.86,211.8,38.56]
[1759157036530,8.76842087,211.86,211.8,32.0]
[1759157036937,8.08842087,211.83,211.8,38.56]
[1759157037136,8.08842087,211.83,211.73,39.59559401]
[1759157037137,0.68,211.82,211.75,26.0]
[1759157037352,0.68,211.82,211.76,38.56]
[1759157037543,8.08842087,211.8,211.76,38.56]
[1759157038642,8.76842087,211.8,211.76,38.54]
[1759157039060,26.0,211.82,211.76,38.54]
[1759157039256,26.0,211.81,211.76,38.54]
[1759157039557,0.68,211.84,211.77,0.68]
[1759157039750,26.68,211.84,211.77,0.68]
[1759157040063,26.0,211.82,211.76,38.54]
[1759157040472,25.29266428,211.81,211.69,0.68]
[1759157040759,51.29266428,211.81,211.69,0.68]
[1759157040970,3.16015328,211.8,211.69,0.68]
[1759157041137,0.68,211.79,211.69,0.68]
[1759157042564,30.72125739,211.81,211.7,4.72366556]
[1759157042764,26.0,211.81,211.71,0.68]
[1759157044540,26.0,211.81,211.72,4.72321934]
[1759157044863,3.15576622,211.85,211.73,22.36401488]
[1759157045154,0.68,211.87,211.74,39.14]
[1759157045563,26.68,211.87,211.75,0.68]
[1759157045749,0.68,211.87,211.75,0.68]
[1759157046066,26.0,211.85,211.75,0.68]
[1759157046470,26.0,211.86,211.76,4.72232716]
[1759157046762,26.0,211.86,211.77,0.68]
[1759157047765,0.68,211.95,211.8,13.59559401]
[1759157047940,0.68,211.94,211.84,26.0]
[1759157048363,0.68,211.93,211.81,13.59559401]
[1759157048572,5.39876179,211.92,211.85,38.58]
[1759157048769,5.39876179,211.92,211.8,105.98]
[1759157048976,26.68,211.91,211.81,38.58]
[1759157049674,0.68,211.9,211.81,38.58]
[1759157049854,0.68,211.9,211.8,105.98]
[1759157050170,3.15398846,211.92,211.81,38.56]
[1759157050370,0.68,211.94,211.84,26.0]
[1759157050863,0.68,211.94,211.85,0.68]
[1759157051066,5.39842414,211.94,211.84,26.0]
[1759157051243,5.39842414,211.94,211.84,26.68]
[1759157051645,0.68,211.93,211.84,0.68]
[1759157051863,0.68,211.93,211.85,38.54]
[1759157052758,5.39854668,211.93,211.85,38.54]
[1759157053344,0.68,211.92,211.81,26.68]
[1759157053549,0.68,211.96,211.85,26.0]
[1759157053776,0.68,211.96,211.85,26.68]
[1759157054070,26.0,211.92,211.86,38.6]
[1759157054568,31.39890782,211.92,211.85,38.6]
[1759157054747,31.39890782,211.92,211.85,43.6]
[1759157054946,31.39890782,211.92,211.85,5.0]
[1759157055245,31.39890782,211.92,211.85,43.6]
[1759157056449,13.59559401,211.9,211.85,5.0]
[1759157056654,26.0,211.8,211.67,0.68]
[1759157056852,0.68,211.79,211.67,0.68]
[1759157057064,31.41305962,211.8,211.65,14.48950885]
[1759157057065,5.41305962,211.77,211.65,14.48950885]
[1759157057370,26.0,211.7,211.58,0.2]
[1759157057667,26.0,211.71,211.62,0.68]
[1759157057874,31.41305962,211.7,211.64,0.68]
[1759157058249,13.59559401,211.75,211.69,5.68]
[1759157058250,3.70419485,211.71,211.69,5.68]
[1759157058451,26.0,211.7,211.69,5.68]
[1759157058751,5.41305962,211.73,211.69,5.68]
[1759157059163,5.41305962,211.73,211.69,5.0]
[1759157059164,10.13608914,211.73,211.69,5.0]
[1759157060283,45.00865363,211.7,211.69,5.0]
[1759157060580,61.30071864,211.7,211.69,5.0]
[1759157060951,66.0643842,211.7,211.69,5.0]
[1759157062371,66.0243842,211.7,211.69,5.0]
[1759157064771,26.8843842,211.7,211.69,5.0]
[1759157065074,62.81231919,211.7,211.69,5.0]
[1759157065277,65.9643842,211.7,211.69,5.0]
[1759157066247,13.59559401,211.66,211.58,0.86]
[1759157066554,5.41305962,211.61,211.58,0.86]
[1759157066967,5.41305962,211.61,211.59,0.66]
[1759157067474,5.41305962,211.61,211.6,0.66]
[1759157068171,26.0,211.63,211.6,0.66]
[1759157068472,26.0,211.62,211.6,0.66]
[1759157068778,26.0,211.62,211.61,0.66]
[1759157069492,3.15206501,211.67,211.61,0.66]
[1759157069672,3.15206501,211.69,211.61,0.66]
[1759157069984,26.0,211.67,211.61,0.66]
[1759157071576,26.0,211.67,211.6,0.66]
[1759157071769,5.41305962,211.65,211.62,0.66]
[1759157072586,5.41305962,211.65,211.63,0.66]
[1759157072780,5.41305962,211.65,211.64,0.66]
[1759157074950,5.41305962,211.65,211.64,5.0]
[1759157075181,5.41305962,211.65,211.64,5.66]
[1759157075374,5.41305962,211.65,211.64,5.0]
[1759157076263,10.13784109,211.65,211.64,5.0]
[1759157077479,5.41305962,211.65,211.64,5.0]
[1759157077694,31.41305962,211.66,211.64,5.0]
[1759157077854,34.56512463,211.66,211.64,5.0]
[1759157078167,31.41305962,211.66,211.64,5.0]
[1759157079165,26.0,211.66,211.64,5.0]
[1759157079369,31.41305962,211.66,211.64,5.0]
[1759157081272,3.14310693,211.68,211.65,0.66]
[1759157081481,13.59559401,211.72,211.65,0.66]
[1759157081792,13.59559401,211.72,211.64,5.0]
[1759157082165,26.0,211.69,211.64,5.0]
[1759157082495,26.0,211.67,211.64,5.0]
[1759157084365,26.0,211.65,211.64,5.0]
[1759157085100,39.00865363,211.65,211.64,5.0]
[1759157085285,57.96865363,211.65,211.64,5.0]
[1759157085491,65.83646664,211.65,211.64,5.0]
[1759157085791,22.15168517,211.65,211.64,5.0]
[1759157085967,61.19168517,211.65,211.64,5.0]
[1759157087083,22.15168517,211.65,211.64,5.0]
[1759157087290,61.17168517,211.65,211.64,5.0]
[1759157088468,8.55609116,211.65,211.64,5.0]
[1759157088678,3.14303154,211.68,211.64,5.66]
[1759157088895,5.41305962,211.68,211.65,0.66]
[1759157089097,5.41305962,211.68,211.64,5.0]
[1759157089392,13.59559401,211.7,211.64,5.0]
[1759157089694,5.41305962,211.71,211.65,0.66]
[1759157089907,26.0,211.68,211.65,0.66]
[1759157090065,26.0,211.68,211.64,5.0]
[1759157090271,26.0,211.68,211.66,0.66]
[1759157090479,31.41305962,211.71,211.67,0.66]
[1759157090675,26.0,211.71,211.67,0.66]
[1759157090979,26.0,211.69,211.68,0.66]
[1759157091489,3.83506303,211.73,211.68,0.66]
[1759157091688,8.55609116,211.76,211.69,0.66]
[1759157091891,26.0,211.73,211.64,5.0]
[1759157092076,13.59559401,211.75,211.67,0.66]
[1759157092597,26.0,211.72,211.67,0.66]
[1759157092769,26.0,211.72,211.68,0.66]
[1759157093769,26.0,211.72,211.66,0.66]
[1759157094396,26.0,211.72,211.64,5.0]
[1759157094397,13.59559401,211.71,211.64,5.0]
[1759157094596,3.14303154,211.73,211.65,0.66]
[1759157094799,13.59559401,211.73,211.65,0.66]
[1759157095184,16.73862555,211.73,211.65,0.66]
[1759157095996,13.59559401,211.73,211.65,0.66]
[1759157097198,3.14303154,211.72,211.65,0.66]
[1759157098177,3.14303154,211.71,211.65,0.66]
[1759157098404,3.14303154,211.7,211.65,0.66]
[1759157098594,3.14303154,211.72,211.65,0.66]
[1759157098905,3.14303154,211.71,211.65,0.66]
[1759157099197,3.14303154,211.7,211.65,0.66]
[1759157099404,3.14303154,211.69,211.65,0.66]
[1759157099586,3.14303154,211.68,211.65,0.66]
[1759157099787,3.14303154,211.72,211.65,0.66]
[1759157100099,3.14303154,211.71,211.65,0.66]
[1759157100297,13.59559401,211.73,211.65,0.66]
[1759157100298,3.14303154,211.7,211.65,0.66]
[1759157100503,3.14303154,211.69,211.65,0.66]
[1759157100689,53.11972429,211.77,211.65,5.38477102]
[1759157100690,0.68,211.77,211.65,5.38477102]
[1759157100890,0.68,211.76,211.66,39.42]
[1759157101086,0.68,211.76,211.67,0.66]
[1759157101495,26.68,211.76,211.67,0.66]
[1759157101801,19.00865363,211.75,211.64,5.0]
[1759157101977,13.59559401,211.69,211.64,5.0]
[1759157102302,6.09305962,211.68,211.64,5.0]
[1759157102492,0.68,211.67,211.64,5.0]
[1759157102696,5.41305962,211.68,211.64,5.0]
[1759157102889,29.92888367,211.7,211.64,5.0]
[1759157103092,0.68,211.7,211.64,5.0]
[1759157103288,5.41305962,211.68,211.64,5.0]
[1759157103487,26.0,211.65,211.64,5.0]
[1759157103706,32.09305962,211.65,211.64,5.0]
[1759157104004,26.0,211.65,211.64,5.0]
[1759157104998,5.41305962,211.68,211.64,5.0]
[1759157105186,6.09305962,211.68,211.64,5.0]
[1759157105385,26.0,211.67,211.64,5.0]
[1759157105785,0.68,211.66,211.64,5.0]
[1759157105981,17.52447768,211.7,211.64,5.0]
[1759157105982,26.68,211.65,211.64,5.0]
[1759157106195,32.09305962,211.65,211.64,5.0]
[1759157106392,31.41305962,211.65,211.64,5.0]
[1759157106590,26.0,211.65,211.64,5.0]
[1759157106808,4.60888367,211.71,211.64,5.66]
[1759157106999,3.92888367,211.72,211.64,5.66]
[1759157107198,10.02194329,211.73,211.64,5.66]
[1759157107505,26.0,211.7,211.64,5.66]
[1759157107695,3.92888367,211.73,211.65,0.66]
[1759157107892,0.68,211.76,211.65,0.66]
[1759157107893,3.92888367,211.75,211.65,0.66]
[1759157108101,26.0,211.74,211.65,0.66]
[1759157108316,0.68,211.76,211.65,0.66]
[1759157109002,26.0,211.72,211.64,5.0]
[1759157109192,26.0,211.72,211.65,0.66]
[1759157109389,7.69844058,211.77,211.65,0.66]
[1759157109706,3.76955691,211.77,211.65,0.66]
[1759157109884,0.68,211.76,211.65,0.66]
[1759157110218,26.0,211.74,211.65,0.66]
[1759157110511,26.68,211.74,211.65,0.66]
[1759157110893,26.0,211.73,211.64,5.0]
[1759157111091,26.68,211.73,211.64,5.0]
[1759157111291,0.68,211.72,211.64,5.0]
[1759157112003,26.0,211.69,211.64,5.0]
[1759157112209,0.68,211.68,211.64,5.0]
[1759157112396,0.68,211.67,211.64,5.0]
[1759157112808,3.17520458,211.66,211.64,5.0]
[1759157113127,8.09793905,211.71,211.64,5.0]
[1759157113128,3.85520458,211.65,211.64,5.0]
[1759157113493,3.17520458,211.67,211.64,5.0]
[1759157113692,3.83520458,211.66,211.64,5.0]
[1759157113911,3.17520458,211.65,211.64,5.0]
[1759157114107,3.17520458,211.67,211.64,5.0]
[1759157114496,26.0,211.68,211.64,5.0]
[1759157114793,26.0,211.68,211.64,5.68]
[1759157115109,3.17520458,211.68,211.65,0.68]
[1759157115305,3.17520458,211.7,211.65,0.68]
[1759157115506,3.17520458,211.69,211.65,0.68]
[1759157115692,3.17520458,211.68,211.64,5.0]
[1759157115896,29.83520458,211.67,211.64,5.0]
[1759157116093,29.83520458,211.66,211.64,5.0]
[1759157116292,3.17520458,211.65,211.64,5.0]
[1759157116517,26.0,211.68,211.64,5.68]
[1759157116518,3.17520458,211.66,211.64,5.68]
[1759157116702,3.17520458,211.67,211.64,5.68]
[1759157116902,26.0,211.69,211.64,5.68]
[1759157117104,3.17520458,211.68,211.64,5.68]
[1759157117303,3.17520458,211.71,211.65,0.68]
[1759157117519,3.17520458,211.7,211.65,0.68]
[1759157117713,3.17520458,211.69,211.65,0.68]
[1759157117909,3.17520458,211.71,211.65,0.68]
[1759157118113,3.83520458,211.7,211.64,5.0]
[1759157118315,3.17520458,211.69,211.64,5.0]
[1759157118619,3.83520458,211.68,211.64,5.0]
[1759157118813,3.83520458,211.67,211.64,5.0]
[1759157119118,26.0,211.68,211.64,5.0]
[1759157119119,3.83520458,211.66,211.64,5.0]
[1759157119417,3.83520458,211.65,211.64,5.0]
[1759157119618,0.66,211.65,211.64,5.0]
[1759157119916,3.17520458,211.66,211.64,5.0]
[1759157120146,3.83520458,211.65,211.64,5.0]
[1759157120422,0.66,211.65,211.64,5.0]
[1759157120717,3.17520458,211.66,211.64,5.0]
[1759157120903,0.66,211.65,211.64,5.0]
[1759157121098,3.17520458,211.67,211.64,5.0]
[1759157121714,3.17520458,211.67,211.64,5.67]
[1759157121906,3.85520458,211.67,211.64,5.0]
[1759157122707,3.17520458,211.67,211.64,5.0]
[1759157123106,3.85520458,211.66,211.64,5.0]
[1759157123321,3.85520458,211.65,211.64,5.0]
[1759157123499,3.85520458,211.67,211.64,5.0]
[1759157123818,3.85520458,211.66,211.64,5.0]
[1759157124003,26.0,211.68,211.64,5.0]
[1759157124004,3.85520458,211.65,211.64,5.0]
[1759157124203,0.68,211.65,211.64,5.0]
[1759157124605,3.17520458,211.67,211.64,5.67]
[1759157124916,0.68,211.71,211.64,5.67]
[1759157124917,3.17520458,211.7,211.64,5.67]
[1759157125128,3.17520458,211.69,211.64,5.0]
[1759157125423,3.17520458,211.68,211.64,5.0]
[1759157125619,3.17520458,211.67,211.64,5.0]
[1759157125827,3.17520458,211.66,211.64,5.0]
[1759157126121,3.17520458,211.67,211.64,5.0]
[1759157126303,3.17520458,211.68,211.65,0.67]
[1759157126623,0.68,211.71,211.64,5.0]
[1759157126920,3.17520458,211.7,211.64,5.67]
[1759157127125,3.17520458,211.72,211.65,0.67]
[1759157127312,3.17520458,211.71,211.65,0.67]
[1759157127653,3.17520458,211.72,211.65,0.67]
[1759157127824,3.17520458,211.76,211.67,8.09793905]
[1759157128123,3.17520458,211.75,211.68,0.67]
[1759157128303,4.42735513,211.78,211.68,0.67]
[1759157128304,3.17520458,211.74,211.68,5.39400119]
[1759157128623,3.17520458,211.73,211.68,0.67]
[1759157128828,0.68,211.73,211.65,0.67]
[1759157129013,3.17520458,211.72,211.65,0.67]
[1759157129201,3.17520458,211.71,211.65,0.67]
[1759157129404,3.17520458,211.74,211.65,0.67]
[1759157129604,3.17520458,211.73,211.65,0.67]
[1759157129823,3.17520458,211.73,211.68,8.09793905]
[1759157130027,3.17520458,211.73,211.69,0.67]
[1759157130221,3.17520458,211.73,211.7,0.67]
[1759157130525,3.17520458,211.72,211.67,0.67]
[1759157130729,3.17520458,211.74,211.68,0.67]
[1759157131027,3.17520458,211.73,211.68,0.67]
[1759157131206,3.17520458,211.72,211.64,17.82290482]
[1759157131403,3.17520458,211.74,211.65,0.67]
[1759157131607,3.17520458,211.73,211.65,0.67]
[1759157131822,3.17520458,211.74,211.65,0.67]
[1759157132013,3.17520458,211.73,211.65,0.67]
[1759157132202,3.17520458,211.72,211.65,0.67]
[1759157132398,3.17520458,211.71,211.65,0.67]
[1759157132600,3.17520458,211.7,211.65,0.67]
[1759157132832,3.17520458,211.72,211.65,0.67]
[1759157133140,3.17520458,211.71,211.65,0.67]
[1759157133337,3.17520458,211.7,211.65,0.67]
[1759157133507,26.68,211.73,211.66,0.67]
[1759157133826,3.17997916,211.72,211.66,0.67]
[1759157134027,3.17997916,211.71,211.66,0.67]
[1759157134205,26.0,211.73,211.67,0.67]
[1759157134403,3.17965001,211.72,211.67,0.67]
[1759157134602,3.17965001,211.71,211.68,0.67]
[1759157134831,3.17965001,211.72,211.69,0.67]
[1759157135031,3.1795165,211.74,211.7,0.67]
[1759157135208,6.90010856,211.79,211.71,0.67]
[1759157135410,3.8595165,211.78,211.67,72.91793905]
[1759157135604,3.1795165,211.77,211.68,0.67]
[1759157135836,29.1795165,211.76,211.68,0.67]
[1759157136139,3.8595165,211.75,211.68,0.67]
[1759157136324,3.1795165,211.74,211.68,0.67]
[1759157136533,3.1795165,211.74,211.68,5.39400845]
[1759157136730,3.1795165,211.78,211.69,0.67]
[1759157136929,3.1795165,211.77,211.69,0.67]
[1759157137140,3.1795165,211.76,211.69,0.67]
[1759157137437,3.1795165,211.78,211.69,0.67]
[1759157137615,3.1795165,211.77,211.69,0.67]
[1759157137817,3.1795165,211.78,211.69,8.76793905]
[1759157138137,3.1795165,211.83,211.76,34.09793905]
[1759157138342,3.1795165,211.88,211.77,53.10559401]
[1759157138541,3.8595165,211.87,211.78,38.86]
[1759157138845,3.1795165,211.86,211.78,38.86]
[1759157139040,0.68,211.85,211.78,38.86]
[1759157139252,3.8595165,211.85,211.78,38.86]
[1759157139412,0.68,211.85,211.78,38.86]
[1759157140942,26.68,211.86,211.79,0.67]
[1759157141132,26.68,211.86,211.78,38.86]
[1759157141440,0.68,211.85,211.78,38.86]
[1759157143137,26.0,211.86,211.79,0.67]
[1759157144525,3.1795165,211.89,211.79,5.39148906]
[1759157144736,0.1,211.9,211.8,0.67]
[1759157144918,0.78,211.9,211.8,0.67]
[1759157145140,26.78,211.9,211.8,0.67]
[1759157145937,0.78,211.9,211.8,0.67]
[1759157146311,0.78,211.9,211.8,5.39143531]
[1759157146513,26.1,211.9,211.82,4.72098951]
[1759157146710,26.1,211.9,211.83,0.67]
[1759157146918,0.1,211.9,211.84,38.72]
[1759157147624,0.1,211.9,211.85,0.67]
[1759157148123,0.1,211.9,211.86,0.67]
[1759157148317,0.1,211.9,211.87,0.67]